[Event "Caplin Hastings Masters 2023-24"]
[Site "Hastings"]
[Date "2023.12.28"]
[Round "1.17"]
[White "Gallagher, Joseph G."]
[Black "Suez-Panama, Gilles"]
[Result "1-0"]
[ECO "C04"]
[WhiteElo "2427"]
[BlackElo "1868"]
[Annotator "ChessBase"]
[PlyCount "77"]
[EventDate "2023.12.18"]
[EventType "swiss"]
[EventCountry "ENG"]
[SourceTitle "playchess.com"]
[Source "ChessBase"]
[SourceQuality "1"]
[TimeControl "40/6000+30:3000+30"]

1. e4 {[%emt 0:00:04]} e6 {[%emt 0:00:05]} 2. d4 {[%emt 0:00:35]} d5 {[%emt 0:00:06]} 3. Nd2 {[%emt 0:00:10]} Nc6 {[%emt 0:00:27]} 4. Ngf3 {[%emt 0:00:31]} Nf6 {[%emt 0:00:09]} 5. e5 {[%emt 0:00:07]} Nd7 {[%emt 0:00:05]} 6. Bd3 {[%emt 0:04:36]} Nb4 {[%emt 0:03:40]} 7. Be2 {[%emt 0:02:32]} c5 {[%emt 0:02:41]} 8. c3 {[%emt 0:01:19]} Nc6 {[%emt 0:00:06]} 9. O-O {[%emt 0:01:57]} f6 {[%emt 0:00:29]} 10. exf6 {[%emt 0:07:28]} Qxf6 {[%emt 0:00:15]} 11. Nb3 {[%emt 0:01:25]} Bd6 {[%emt 0:02:12]} 12. Bg5 {[%emt 0:10:16]} Qf7 {[%emt 0:01:37]} 13. c4 {[%emt 0:03:57]} O-O {[%emt 0:09:31]} 14. Be3 {[%emt 0:17:38]} cxd4 {[%emt 0:03:14]} 15. Nbxd4 {[%emt 0:01:57]} Nxd4 {[%emt 0:04:39]} 16. Nxd4 {[%emt 0:01:05]} Nf6 {[%emt 0:04:10]} 17. Qb3 {[%emt 0:06:52]} Kh8 {[%emt 0:14:03]} 18. Rac1 {[%emt 0:06:05]} Ne4 {[%emt 0:05:10]} 19. Bf3 {[%emt 0:05:52]} Qg6 {[%emt 0:14:36]} 20. cxd5 {[%emt 0:05:39]} e5 {[%emt 0:04:16]} 21. Bxe4 {[%emt 0:01:50]} Qxe4 {[%emt 0:01:23]} 22. Nb5 {[%emt 0:06:04]} Rf6 {[%emt 0:06:34]} 23. f3 {[%emt 0:06:40]} Qg6 {[%emt 0:01:24]} 24. Nxd6 {[%emt 0:00:46]} Rxd6 {[%emt 0:00:06]} 25. Bc5 {[%emt 0:00:50]} Bh3 {[%emt 0:00:33]} 26. Rf2 {[%emt 0:03:54]} Rc8 {[%emt 0:05:03]} 27. Qxb7 {[%emt 0:00:11]} Rb6 {[%emt 0:01:10]} 28. Qxc8+ {[%emt 0:04:04]} Bxc8 {[%emt 0:00:21]} 29. Bxb6 {[%emt 0:00:02]} Bb7 {[%emt 0:00:54]} 30. Bxa7 {[%emt 0:00:33]} Bxd5 {[%emt 0:00:29]} 31. a3 {[%emt 0:02:56]} h5 {[%emt 0:00:43]} 32. Re1 {[%emt 0:02:22]} e4 {[%emt 0:02:35]} 33. fxe4 {[%emt 0:00:10]} Bxe4 {[%emt 0:00:16]} 34. Bd4 {[%emt 0:00:54]} h4 {[%emt 0:01:21]} 35. h3 {[%emt 0:00:09]} Kh7 {[%emt 0:00:56]} 36. Ree2 {[%emt 0:00:11]} Qc6 {[%emt 0:01:53]} 37. Rf7 {[%emt 0:03:11]} Qc1+ {[%emt 0:02:20]} 38. Kh2 {[%emt 0:00:37]} Bg6 {[%emt 0:01:49]} 39. Rxg7+ {[%emt 0:00:17]} 1-0

[Event "Caplin Hastings Masters 2023-24"]
[Site "Hastings"]
[Date "2023.12.28"]
[Round "1.18"]
[White "Ortiz Sanchez, Luis"]
[Black "Boyer, Mahel"]
[Result "1/2-1/2"]
[ECO "C01"]
[WhiteElo "1863"]
[BlackElo "2427"]
[Annotator "ChessBase"]
[PlyCount "89"]
[EventDate "2023.12.18"]
[EventType "swiss"]
[EventCountry "ENG"]
[SourceTitle "playchess.com"]
[Source "ChessBase"]
[SourceQuality "1"]
[TimeControl "40/6000+30:3000+30"]

1. e4 {[%emt 0:00:06]} e6 {[%emt 0:00:21]} 2. d4 {[%emt 0:00:29]} d5 {[%emt 0:00:08]} 3. exd5 {[%emt 0:00:07]} exd5 {[%emt 0:00:07]} 4. Nf3 {[%emt 0:00:07]} Bd6 {[%emt 0:02:19]} 5. Bd3 {[%emt 0:00:29]} Ne7 {[%emt 0:00:29]} 6. O-O {[%emt 0:01:34]} O-O {[%emt 0:02:08]} 7. c4 {[%emt 0:01:35]} dxc4 {[%emt 0:01:13]} 8. Bxc4 {[%emt 0:00:09]} Nbc6 {[%emt 0:07:06]} 9. h3 {[%emt 0:03:52]} Bf5 {[%emt 0:22:21]} 10. Nc3 {[%emt 0:05:35]} h6 {[%emt 0:06:16]} 11. Nb5 {[%emt 0:04:05]} a6 {[%emt 0:04:09]} 12. Nxd6 {[%emt 0:01:17]} Qxd6 {[%emt 0:00:10]} 13. b3 {[%emt 0:06:12]} Rad8 {[%emt 0:25:33]} 14. Bb2 {[%emt 0:02:53]} Qg6 {[%emt 0:06:59]} 15. Kh1 {[%emt 0:06:32]} b5 {[%emt 0:01:51]} 16. Be2 {[%emt 0:00:29]} Be4 {[%emt 0:00:22]} 17. Rg1 {[%emt 0:15:32]} Nf5 {[%emt 0:02:07]} 18. Rc1 {[%emt 0:08:33]} Rd7 {[%emt 0:05:56]} 19. Rxc6 {[%emt 0:00:59]} Qxc6 {[%emt 0:09:22]} 20. Ne5 {[%emt 0:00:51]} Qe6 {[%emt 0:00:38]} 21. Nxd7 {[%emt 0:00:48]} Qxd7 {[%emt 0:00:19]} 22. Bg4 {[%emt 0:00:36]} h5 {[%emt 0:10:11]} 23. Bxf5 {[%emt 0:00:27]} Qxf5 {[%emt 0:00:32]} 24. f3 {[%emt 0:00:44]} Bd5 {[%emt 0:00:21]} 25. Re1 {[%emt 0:00:10]} f6 {[%emt 0:00:41]} 26. Ba3 {[%emt 0:03:25]} Ra8 {[%emt 0:01:19]} 27. Qe2 {[%emt 0:09:54]} c6 {[%emt 0:00:30]} 28. Bc5 {[%emt 0:04:19]} a5 {[%emt 0:00:23]} 29. b4 {[%emt 0:01:07]} axb4 {[%emt 0:00:10]} 30. Bxb4 {[%emt 0:03:27]} Rxa2 {[%emt 0:00:10]} 31. Qe3 {[%emt 0:01:16]} Rb2 {[%emt 0:01:05]} 32. Bd6 {[%emt 0:00:47]} b4 {[%emt 0:00:15]} 33. Re2 {[%emt 0:01:05]} Rb1+ {[%emt 0:00:57]} 34. Kh2 {[%emt 0:02:14]} b3 {[%emt 0:00:08]} 35. Qe8+ {[%emt 0:00:26]} Kh7 {[%emt 0:00:02]} 36. Qb8 {[%emt 0:00:14]} Bf7 {[%emt 0:01:21]} 37. Ba3 {[%emt 0:09:34]} Bd5 {[%emt 0:00:30]} 38. Re8 {[%emt 0:00:26]} Ra1 {[%emt 0:00:14]} 39. h4 {[%emt 0:09:08]} Kg6 {[%emt 0:00:46]} 40. Rh8 {[%emt 0:00:38]} Rxa3 {[%emt 0:00:30]} 41. Qg3+ {[%emt 0:50:24]} Kf7 {[%emt 0:02:25]} 42. Qc7+ {[%emt 0:00:00]} Kg6 {[%emt 0:00:04]} 43. Qg3+ {[%emt 0:00:00]} Kf7 {[%emt 0:00:02]} 44. Qc7+ {[%emt 0:00:00]} Kg6 {[%emt 0:00:06]} 45. Qg3+ {[%emt 0:00:00]} 1/2-1/2

[Event "Caplin Hastings Masters 2023-24"]
[Site "Hastings"]
[Date "2023.12.28"]
[Round "1.19"]
[White "Cherniaev, Alexander"]
[Black "Teh, Wee Zhun"]
[Result "1-0"]
[ECO "A11"]
[WhiteElo "2381"]
[BlackElo "1858"]
[Annotator "ChessBase"]
[PlyCount "111"]
[EventDate "2023.12.18"]
[EventType "swiss"]
[EventCountry "ENG"]
[SourceTitle "playchess.com"]
[Source "ChessBase"]
[SourceQuality "1"]
[TimeControl "40/6000+30:3000+30"]

1. Nf3 {[%emt 0:00:06]} d5 {[%emt 0:00:26]} 2. g3 {[%emt 0:00:05]} c6 {[%emt 0:00:42]} 3. Bg2 {[%emt 0:00:26]} Nf6 {[%emt 0:00:44]} 4. c4 {[%emt 0:00:08]} dxc4 {[%emt 0:04:16]} 5. Na3 {[%emt 0:00:20]} b5 {[%emt 0:02:33]} 6. d3 {[%emt 0:00:05]} e6 {[%emt 0:22:09]} 7. O-O {[%emt 0:02:45]} cxd3 {[%emt 0:14:07]} 8. Ne5 {[%emt 0:15:25]} Bxa3 {[%emt 0:30:02]} 9. Nxc6 {[%emt 0:30:46]} Nxc6 {[%emt 0:17:07]} 10. Bxc6+ {[%emt 0:00:23]} Bd7 {[%emt 0:00:38]} 11. Bxa8 {[%emt 0:00:13]} Bc5 {[%emt 0:10:17]} 12. Bg2 {[%emt 0:02:32]} dxe2 {[%emt 0:00:33]} 13. Qxe2 {[%emt 0:00:06]} h6 {[%emt 0:01:37]} 14. Be3 {[%emt 0:00:36]} Qb6 {[%emt 0:00:54]} 15. Bxc5 {[%emt 0:00:22]} Qxc5 {[%emt 0:00:02]} 16. Rac1 {[%emt 0:00:27]} Qb6 {[%emt 0:00:55]} 17. Rfd1 {[%emt 0:04:13]} O-O {[%emt 0:00:22]} 18. Qe3 {[%emt 0:00:20]} Qa5 {[%emt 0:01:13]} 19. a3 {[%emt 0:05:41]} b4 {[%emt 0:00:41]} 20. Qd2 {[%emt 0:14:19]} Rb8 {[%emt 0:00:21]} 21. Rc4 {[%emt 0:00:08]} Ba4 {[%emt 0:00:49]} 22. Rxb4 {[%emt 0:00:41]} Rxb4 {[%emt 0:00:30]} 23. Qd8+ {[%emt 0:00:47]} Qxd8 {[%emt 0:00:07]} 24. Rxd8+ {[%emt 0:00:07]} Kh7 {[%emt 0:00:19]} 25. axb4 {[%emt 0:00:08]} Bb5 {[%emt 0:00:28]} 26. Ra8 {[%emt 0:01:34]} a6 {[%emt 0:00:07]} 27. Bf1 {[%emt 0:01:00]} Nd5 {[%emt 0:00:38]} 28. Bxb5 {[%emt 0:00:11]} axb5 {[%emt 0:00:05]} 29. Rb8 {[%emt 0:00:19]} Nxb4 {[%emt 0:00:28]} 30. Rxb5 {[%emt 0:00:07]} Nc6 {[%emt 0:01:07]} 31. Rc5 {[%emt 0:00:21]} Nb4 {[%emt 0:00:35]} 32. Rc4 {[%emt 0:00:29]} Nd5 {[%emt 0:00:23]} 33. Kf1 {[%emt 0:03:29]} Kg6 {[%emt 0:00:19]} 34. Ke2 {[%emt 0:00:09]} Kf6 {[%emt 0:00:19]} 35. Ra4 {[%emt 0:00:11]} g5 {[%emt 0:00:21]} 36. Ra7 {[%emt 0:01:45]} Kg6 {[%emt 0:01:41]} 37. Rd7 {[%emt 0:03:05]} Nb6 {[%emt 0:00:18]} 38. Rb7 {[%emt 0:01:19]} Nd5 {[%emt 0:00:26]} 39. Kd3 {[%emt 0:01:00]} f6 {[%emt 0:00:22]} 40. Kd4 {[%emt 0:01:03]} h5 {[%emt 0:00:50]} 41. b4 {[%emt 0:50:47]} h4 {[%emt 0:04:22]} 42. g4 {[%emt 0:00:00]} h3 {[%emt 0:03:11]} 43. Ke4 {[%emt 0:00:00]} Nc3+ {[%emt 0:00:48]} 44. Kf3 {[%emt 0:00:00]} f5 {[%emt 0:00:29]} 45. b5 {[%emt 0:00:00]} f4 {[%emt 0:06:31]} 46. b6 {[%emt 0:00:00]} Nd5 {[%emt 0:02:56]} 47. Rg7+ {[%emt 0:00:00]} Kxg7 {[%emt 0:00:29]} 48. b7 {[%emt 0:00:00]} Ne7 {[%emt 0:01:26]} 49. b8=Q {[%emt 0:00:00]} Ng6 {[%emt 0:00:23]} 50. Ke4 {[%emt 0:00:00]} Nf8 {[%emt 0:01:39]} 51. Qd8 {[%emt 0:00:00]} Nh7 {[%emt 0:01:48]} 52. Ke5 {[%emt 0:00:00]} Kf7 {[%emt 0:00:37]} 53. Qd7+ {[%emt 0:00:00]} Kg8 {[%emt 0:00:57]} 54. Qxe6+ {[%emt 0:00:00]} Kg7 {[%emt 0:00:09]} 55. Kf5 {[%emt 0:00:00]} Kf8 {[%emt 0:01:26]} 56. Kg6 {[%emt 0:00:00]} 1-0

[Event "Caplin Hastings Masters 2023-24"]
[Site "Hastings"]
[Date "2023.12.28"]
[Round "1.20"]
[White "Sivanandan, Bodhana"]
[Black "Derakhshani, Borna"]
[Result "0-1"]
[ECO "B23"]
[WhiteElo "1857"]
[BlackElo "2380"]
[Annotator "ChessBase"]
[PlyCount "118"]
[EventDate "2023.12.18"]
[EventType "swiss"]
[EventCountry "ENG"]
[SourceTitle "playchess.com"]
[Source "ChessBase"]
[SourceQuality "1"]
[TimeControl "40/6000+30:3000+30"]

1. e4 {[%emt 0:00:10]} c5 {[%emt 0:00:17]} 2. Nc3 {[%emt 0:01:36]} Nc6 {[%emt 0:00:05]} 3. f4 {[%emt 0:00:31]} g6 {[%emt 0:00:08]} 4. Nf3 {[%emt 0:00:46]} Bg7 {[%emt 0:00:06]} 5. a4 {[%emt 0:00:43]} b6 {[%emt 0:00:07]} 6. Bc4 {[%emt 0:02:07]} e6 {[%emt 0:00:08]} 7. d3 {[%emt 0:02:29]} Nge7 {[%emt 0:00:18]} 8. O-O {[%emt 0:03:08]} O-O {[%emt 0:01:43]} 9. Qe1 {[%emt 0:05:07]} d5 {[%emt 0:02:23]} 10. Bb3 {[%emt 0:05:34]} Nb4 {[%emt 0:13:09]} 11. Qh4 {[%emt 0:07:22]} Nec6 {[%emt 0:04:31]} 12. Qxd8 {[%emt 0:07:00]} Rxd8 {[%emt 0:00:04]} 13. Na2 {[%emt 0:08:27]} dxe4 {[%emt 0:01:30]} 14. Nxb4 {[%emt 0:03:49]} Nxb4 {[%emt 0:00:37]} 15. dxe4 {[%emt 0:00:18]} Ba6 {[%emt 0:00:06]} 16. c4 {[%emt 0:06:18]} Rd3 {[%emt 0:00:27]} 17. Ra3 {[%emt 0:02:07]} Rxb3 {[%emt 0:01:57]} 18. Rxb3 {[%emt 0:00:37]} Bxc4 {[%emt 0:00:05]} 19. Rxb4 {[%emt 0:07:24]} Bxf1 {[%emt 0:01:18]} 20. Rb3 {[%emt 0:00:37]} Bc4 {[%emt 0:00:22]} 21. Re3 {[%emt 0:01:03]} Rd8 {[%emt 0:01:57]} 22. e5 {[%emt 0:08:06]} Bf8 {[%emt 0:26:50]} 23. Rc3 {[%emt 0:09:25]} Rd1+ {[%emt 0:08:04]} 24. Kf2 {[%emt 0:00:09]} Rf1+ {[%emt 0:00:12]} 25. Kg3 {[%emt 0:01:06]} Bd5 {[%emt 0:00:07]} 26. Nd2 {[%emt 0:04:06]} Rg1 {[%emt 0:02:18]} 27. Nf3 {[%emt 0:01:18]} Rd1 {[%emt 0:00:06]} 28. Nd2 {[%emt 0:04:00]} Be7 {[%emt 0:05:15]} 29. Nc4 {[%emt 0:02:12]} h5 {[%emt 0:07:56]} 30. h3 {[%emt 0:03:09]} Kf8 {[%emt 0:04:30]} 31. b3 {[%emt 0:01:44]} Ke8 {[%emt 0:01:44]} 32. Ne3 {[%emt 0:02:03]} Rd4 {[%emt 0:01:08]} 33. Nc2 {[%emt 0:01:32]} Re4 {[%emt 0:00:14]} 34. Kf2 {[%emt 0:00:28]} f6 {[%emt 0:04:35]} 35. Re3 {[%emt 0:07:03]} Rxf4+ {[%emt 0:01:01]} 36. Kg3 {[%emt 0:01:18]} Rf1 {[%emt 0:00:41]} 37. Re1 {[%emt 0:02:25]} Rxe1 {[%emt 0:00:23]} 38. Nxe1 {[%emt 0:00:07]} Bxb3 {[%emt 0:00:10]} 39. exf6 {[%emt 0:00:39]} Bxf6 {[%emt 0:00:07]} 40. a5 {[%emt 0:00:16]} Bc3 {[%emt 0:01:54]} 41. Nd3 {[%emt 0:51:11]} Bxa5 {[%emt 0:50:07]} 42. Nf4 {[%emt 0:00:40]} Kf7 {[%emt 0:00:13]} 43. Nd3 {[%emt 0:00:26]} Bc3 {[%emt 0:00:07]} 44. Bf4 {[%emt 0:00:31]} a5 {[%emt 0:03:08]} 45. Bc7 {[%emt 0:00:42]} c4 {[%emt 0:00:08]} 46. Ne5+ {[%emt 0:00:50]} Kg7 {[%emt 0:01:10]} 47. Nc6 {[%emt 0:00:35]} a4 {[%emt 0:00:17]} 48. Bxb6 {[%emt 0:00:37]} a3 {[%emt 0:00:05]} 49. Bd4+ {[%emt 0:00:12]} Bxd4 {[%emt 0:00:06]} 50. Nxd4 {[%emt 0:00:08]} a2 {[%emt 0:00:03]} 51. Nxe6+ {[%emt 0:00:16]} Kf6 {[%emt 0:00:05]} 52. Nf4 {[%emt 0:00:20]} a1=Q {[%emt 0:00:08]} 53. h4 {[%emt 0:00:15]} Kf5 {[%emt 0:00:07]} 54. Nh3 {[%emt 0:00:13]} c3 {[%emt 0:00:10]} 55. Kh2 {[%emt 0:00:12]} c2 {[%emt 0:00:06]} 56. Ng5 {[%emt 0:00:14]} Qe5+ {[%emt 0:00:06]} 57. Kg1 {[%emt 0:00:12]} c1=R+ {[%emt 0:00:07]} 58. Kf2 {[%emt 0:00:13]} Qe1+ {[%emt 0:00:04]} 59. Kf3 {[%emt 0:00:08]} Bd5+ {[%emt 0:00:05]} 0-1

[Event "Caplin Hastings Masters 2023-24"]
[Site "Hastings"]
[Date "2023.12.28"]
[Round "1.21"]
[White "Arkell, Keith C"]
[Black "Boggarapu, Kritan"]
[Result "1-0"]
[ECO "D36"]
[WhiteElo "2371"]
[BlackElo "1857"]
[Annotator "ChessBase"]
[PlyCount "97"]
[EventDate "2023.12.18"]
[EventType "swiss"]
[EventCountry "ENG"]
[SourceTitle "playchess.com"]
[Source "ChessBase"]
[SourceQuality "1"]
[TimeControl "40/6000+30:3000+30"]

1. Nf3 {[%emt 0:00:07]} d5 {[%emt 0:00:10]} 2. d4 {[%emt 0:00:05]} Nf6 {[%emt 0:00:06]} 3. c4 {[%emt 0:00:05]} c6 {[%emt 0:00:05]} 4. Nc3 {[%emt 0:00:06]} e6 {[%emt 0:00:06]} 5. cxd5 {[%emt 0:00:06]} exd5 {[%emt 0:00:06]} 6. Qc2 {[%emt 0:00:06]} g6 {[%emt 0:00:17]} 7. Bg5 {[%emt 0:00:06]} Be7 {[%emt 0:00:10]} 8. e3 {[%emt 0:00:06]} Bf5 {[%emt 0:00:11]} 9. Bd3 {[%emt 0:00:06]} Bxd3 {[%emt 0:00:30]} 10. Qxd3 {[%emt 0:00:05]} Nbd7 {[%emt 0:00:06]} 11. Bh6 {[%emt 0:00:05]} Bf8 {[%emt 0:00:29]} 12. Bxf8 {[%emt 0:00:07]} Kxf8 {[%emt 0:00:09]} 13. b4 {[%emt 0:00:11]} Kg7 {[%emt 0:01:56]} 14. O-O {[%emt 0:00:21]} Re8 {[%emt 0:13:20]} 15. b5 {[%emt 0:01:18]} c5 {[%emt 0:02:37]} 16. dxc5 {[%emt 0:02:00]} Nxc5 {[%emt 0:00:06]} 17. Qd4 {[%emt 0:00:29]} Nce4 {[%emt 0:05:35]} 18. Rfd1 {[%emt 0:03:49]} Nxc3 {[%emt 0:02:02]} 19. Qxc3 {[%emt 0:00:05]} Kg8 {[%emt 0:02:57]} 20. Rac1 {[%emt 0:00:58]} Qb6 {[%emt 0:23:09]} 21. a4 {[%emt 0:02:42]} Rac8 {[%emt 0:05:55]} 22. Qxc8 {[%emt 0:04:20]} Rxc8 {[%emt 0:00:08]} 23. Rxc8+ {[%emt 0:00:07]} Kg7 {[%emt 0:00:05]} 24. Rdc1 {[%emt 0:02:47]} Qa5 {[%emt 0:01:49]} 25. R8c7 {[%emt 0:00:15]} Ne4 {[%emt 0:29:50]} 26. Rxb7 {[%emt 0:06:32]} Qxa4 {[%emt 0:00:20]} 27. b6 {[%emt 0:11:08]} axb6 {[%emt 0:00:26]} 28. Ne5 {[%emt 0:08:55]} Nd6 {[%emt 0:02:53]} 29. Rxb6 {[%emt 0:00:43]} Qa3 {[%emt 0:05:24]} 30. Rcb1 {[%emt 0:05:11]} f6 {[%emt 0:05:38]} 31. Nc6 {[%emt 0:04:44]} h5 {[%emt 0:03:16]} 32. Nd4 {[%emt 0:00:58]} Qa2 {[%emt 0:02:27]} 33. R6b2 {[%emt 0:02:04]} Qa3 {[%emt 0:00:26]} 34. h4 {[%emt 0:00:17]} g5 {[%emt 0:02:06]} 35. hxg5 {[%emt 0:00:31]} fxg5 {[%emt 0:00:05]} 36. Rb6 {[%emt 0:00:29]} Kf7 {[%emt 0:00:59]} 37. Rc6 {[%emt 0:02:55]} g4 {[%emt 0:02:01]} 38. Nb5 {[%emt 0:04:36]} Nxb5 {[%emt 0:00:25]} 39. Rxb5 {[%emt 0:00:09]} Qa1+ {[%emt 0:00:57]} 40. Kh2 {[%emt 0:00:07]} Qe5+ {[%emt 0:00:03]} 41. g3 {[%emt 0:50:23]} Ke7 {[%emt 0:50:43]} 42. Rb7+ {[%emt 0:00:41]} Kd8 {[%emt 0:00:02]} 43. Rg6 {[%emt 0:01:02]} Kc8 {[%emt 0:00:36]} 44. Rf7 {[%emt 0:03:37]} Qe8 {[%emt 0:00:00]} 45. Rgg7 {[%emt 0:00:00]} Kb8 {[%emt 0:00:00]} 46. Rb7+ {[%emt 0:00:00]} Ka8 {[%emt 0:00:00]} 47. Ra7+ {[%emt 0:00:00]} Kb8 {[%emt 0:00:00]} 48. Rgb7+ {[%emt 0:00:00]} Kc8 {[%emt 0:00:00]} 49. Ra8+ {[%emt 0:00:00]} 1-0

[Event "Caplin Hastings Masters 2023-24"]
[Site "Hastings"]
[Date "2023.12.28"]
[Round "1.22"]
[White "Vasiliadis, Theodoros"]
[Black "Unuk, Laura"]
[Result "0-1"]
[ECO "A13"]
[WhiteElo "1845"]
[BlackElo "2345"]
[Annotator "ChessBase"]
[PlyCount "134"]
[EventDate "2023.12.18"]
[EventType "swiss"]
[EventCountry "ENG"]
[SourceTitle "playchess.com"]
[Source "ChessBase"]
[SourceQuality "1"]
[TimeControl "40/6000+30:3000+30"]

1. Nf3 {[%emt 0:00:04]} d5 {[%emt 0:00:25]} 2. g3 {[%emt 0:00:58]} g6 {[%emt 0:01:56]} 3. Bg2 {[%emt 0:05:45]} Bg7 {[%emt 0:00:20]} 4. c4 {[%emt 0:00:59]} e6 {[%emt 0:07:00]} 5. d4 {[%emt 0:03:15]} Ne7 {[%emt 0:01:31]} 6. O-O {[%emt 0:13:22]} O-O {[%emt 0:00:18]} 7. cxd5 {[%emt 0:06:29]} exd5 {[%emt 0:00:34]} 8. Nc3 {[%emt 0:06:37]} c6 {[%emt 0:01:37]} 9. b3 {[%emt 0:06:30]} Nf5 {[%emt 0:03:06]} 10. e3 {[%emt 0:12:48]} Nd7 {[%emt 0:03:32]} 11. Bb2 {[%emt 0:02:47]} Re8 {[%emt 0:01:04]} 12. Re1 {[%emt 0:00:54]} Nd6 {[%emt 0:04:56]} 13. Qc2 {[%emt 0:09:25]} Nf6 {[%emt 0:04:54]} 14. Ne5 {[%emt 0:02:39]} Ng4 {[%emt 0:10:29]} 15. Nxg4 {[%emt 0:04:13]} Bxg4 {[%emt 0:00:09]} 16. h3 {[%emt 0:04:47]} Bf5 {[%emt 0:02:22]} 17. Qd2 {[%emt 0:01:17]} h5 {[%emt 0:00:59]} 18. f3 {[%emt 0:02:14]} Be6 {[%emt 0:13:09]} 19. e4 {[%emt 0:04:03]} dxe4 {[%emt 0:06:09]} 20. fxe4 {[%emt 0:02:54]} Qa5 {[%emt 0:03:44]} 21. Rad1 {[%emt 0:03:32]} Rad8 {[%emt 0:00:52]} 22. Qf2 {[%emt 0:03:14]} Re7 {[%emt 0:22:47]} 23. Re2 {[%emt 0:03:56]} Ne8 {[%emt 0:04:39]} 24. Red2 {[%emt 0:03:20]} Red7 {[%emt 0:07:29]} 25. Na4 {[%emt 0:01:56]} b6 {[%emt 0:02:24]} 26. Bc3 {[%emt 0:00:35]} Qg5 {[%emt 0:01:30]} 27. Qf4 {[%emt 0:01:39]} Qe7 {[%emt 0:00:36]} 28. d5 {[%emt 0:01:14]} cxd5 {[%emt 0:02:11]} 29. exd5 {[%emt 0:01:30]} Bxc3 {[%emt 0:01:23]} 30. Nxc3 {[%emt 0:00:11]} Bf5 {[%emt 0:00:05]} 31. Kh2 {[%emt 0:01:36]} Qd6 {[%emt 0:01:29]} 32. Qxd6 {[%emt 0:01:04]} Nxd6 {[%emt 0:00:07]} 33. Bf3 {[%emt 0:00:25]} Re7 {[%emt 0:01:20]} 34. Re2 {[%emt 0:00:35]} Rc7 {[%emt 0:01:17]} 35. Na4 {[%emt 0:00:35]} b5 {[%emt 0:00:53]} 36. Nb2 {[%emt 0:00:17]} Rc3 {[%emt 0:00:07]} 37. Bg2 {[%emt 0:00:41]} Rdc8 {[%emt 0:00:46]} 38. Rd4 {[%emt 0:00:31]} Rc2 {[%emt 0:00:33]} 39. Rdd2 {[%emt 0:00:29]} Rxd2 {[%emt 0:00:40]} 40. Rxd2 {[%emt 0:00:04]} Rc3 {[%emt 0:00:34]} 41. Nd1 {[%emt 0:08:02]} Rc1 {[%emt 0:10:34]} 42. Ne3 {[%emt 0:03:53]} Bb1 {[%emt 0:00:33]} 43. a4 {[%emt 0:24:36]} Rc3 {[%emt 0:11:17]} 44. Rb2 {[%emt 0:00:28]} Rxe3 {[%emt 0:04:42]} 45. Rxb1 {[%emt 0:00:10]} b4 {[%emt 0:00:56]} 46. a5 {[%emt 0:10:41]} Kf8 {[%emt 0:01:08]} 47. a6 {[%emt 0:00:57]} Ke7 {[%emt 0:03:56]} 48. Bf1 {[%emt 0:00:13]} Rc3 {[%emt 0:14:01]} 49. Rb2 {[%emt 0:01:29]} Kd7 {[%emt 0:01:39]} 50. Be2 {[%emt 0:01:48]} f5 {[%emt 0:00:51]} 51. Kg2 {[%emt 0:00:45]} Ne4 {[%emt 0:00:38]} 52. Bf3 {[%emt 0:00:48]} Ng5 {[%emt 0:01:20]} 53. Be2 {[%emt 0:00:19]} Kd6 {[%emt 0:00:12]} 54. h4 {[%emt 0:01:20]} Ne4 {[%emt 0:00:50]} 55. Bf3 {[%emt 0:00:09]} Kxd5 {[%emt 0:02:15]} 56. Rd2+ {[%emt 0:00:10]} Kc6 {[%emt 0:01:30]} 57. Bxe4+ {[%emt 0:02:27]} fxe4 {[%emt 0:00:04]} 58. Rd4 {[%emt 0:00:10]} Rxb3 {[%emt 0:01:19]} 59. Rxe4 {[%emt 0:00:08]} Kb5 {[%emt 0:01:10]} 60. Re6 {[%emt 0:01:12]} Ra3 {[%emt 0:00:30]} 61. Rxg6 {[%emt 0:01:05]} Rxa6 {[%emt 0:00:03]} 62. Rg5+ {[%emt 0:00:35]} Kc4 {[%emt 0:00:09]} 63. Rxh5 {[%emt 0:00:38]} b3 {[%emt 0:00:10]} 64. Rh7 {[%emt 0:00:31]} b2 {[%emt 0:00:17]} 65. Rc7+ {[%emt 0:00:23]} Kb3 {[%emt 0:00:43]} 66. Rb7+ {[%emt 0:00:27]} Rb6 {[%emt 0:00:07]} 67. Rxb6+ {[%emt 0:00:28]} axb6 {[%emt 0:00:04]} 0-1

[Event "Caplin Hastings Masters 2023-24"]
[Site "Hastings"]
[Date "2023.12.28"]
[Round "1.23"]
[White "Grutter, Tim"]
[Black "Patel, Zain"]
[Result "1-0"]
[ECO "B11"]
[WhiteElo "2342"]
[BlackElo "1841"]
[Annotator "ChessBase"]
[PlyCount "73"]
[EventDate "2023.12.18"]
[EventType "swiss"]
[EventCountry "ENG"]
[SourceTitle "playchess.com"]
[Source "ChessBase"]
[SourceQuality "1"]
[TimeControl "40/6000+30:3000+30"]

1. e4 {[%emt 0:00:03]} c6 {[%emt 0:00:14]} 2. Nf3 {[%emt 0:00:05]} d5 {[%emt 0:00:12]} 3. Nc3 {[%emt 0:00:05]} Bg4 {[%emt 0:00:26]} 4. h3 {[%emt 0:00:16]} Bxf3 {[%emt 0:00:17]} 5. Qxf3 {[%emt 0:00:05]} e6 {[%emt 0:00:34]} 6. Be2 {[%emt 0:00:38]} Nd7 {[%emt 0:01:21]} 7. d4 {[%emt 0:00:19]} dxe4 {[%emt 0:01:31]} 8. Nxe4 {[%emt 0:00:08]} Ngf6 {[%emt 0:01:09]} 9. Nd2 {[%emt 0:00:47]} Be7 {[%emt 0:05:23]} 10. O-O {[%emt 0:00:52]} O-O {[%emt 0:00:26]} 11. Rd1 {[%emt 0:00:29]} Qc7 {[%emt 0:09:12]} 12. Nc4 {[%emt 0:06:29]} Nd5 {[%emt 0:01:36]} 13. Ne3 {[%emt 0:02:11]} Nxe3 {[%emt 0:04:57]} 14. Bxe3 {[%emt 0:00:40]} Nf6 {[%emt 0:02:48]} 15. c4 {[%emt 0:05:14]} Rfd8 {[%emt 0:07:17]} 16. Rac1 {[%emt 0:04:19]} Rac8 {[%emt 0:02:02]} 17. Bd3 {[%emt 0:12:20]} Rd7 {[%emt 0:19:59]} 18. Bb1 {[%emt 0:06:53]} c5 {[%emt 0:20:12]} 19. d5 {[%emt 0:03:54]} Rcd8 {[%emt 0:11:28]} 20. Re1 {[%emt 0:04:55]} Qb6 {[%emt 0:06:15]} 21. dxe6 {[%emt 0:02:48]} fxe6 {[%emt 0:00:08]} 22. b3 {[%emt 0:01:16]} Rf8 {[%emt 0:04:34]} 23. Bg5 {[%emt 0:09:26]} Bd8 {[%emt 0:04:11]} 24. Qe2 {[%emt 0:03:12]} Re8 {[%emt 0:00:51]} 25. Bxf6 {[%emt 0:09:28]} gxf6 {[%emt 0:00:34]} 26. Qh5 {[%emt 0:00:16]} Ree7 {[%emt 0:00:57]} 27. Bxh7+ {[%emt 0:00:48]} Kf8 {[%emt 0:00:48]} 28. Bg6 {[%emt 0:03:01]} Rg7 {[%emt 0:00:32]} 29. Rcd1 {[%emt 0:02:13]} Rd4 {[%emt 0:00:46]} 30. Qh8+ {[%emt 0:04:12]} Rg8 {[%emt 0:00:05]} 31. Qh6+ {[%emt 0:00:04]} Rg7 {[%emt 0:00:33]} 32. Rd3 {[%emt 0:05:33]} Qd6 {[%emt 0:01:24]} 33. Rg3 {[%emt 0:03:20]} Rd1 {[%emt 0:00:43]} 34. Rxd1 {[%emt 0:00:42]} Qxd1+ {[%emt 0:00:04]} 35. Kh2 {[%emt 0:00:03]} Qd4 {[%emt 0:01:12]} 36. Bh5 {[%emt 0:01:01]} f5 {[%emt 0:01:12]} 37. Qh8+ {[%emt 0:00:06]} 1-0